[Event "Titled Tuesday Blitz July 6 2021"]
[White "Nakamura, Hikaru"]
[Black "Deepan Chakkravarthy J."]
[WhiteFideId "2016192"]
[BlackFideId "5011132"]
[WhiteElo "2900"]
[BlackElo "2490"]
[Result "1-0"]
[Round "07"]
[TimeControl "180+1"]
[Date "2021.07.06"]
[WhiteClock "0:00:39"]
[BlackClock "0:00:01"]

1. Nf3 {[%clk 0:03:00]}  d5 {[%clk 0:02:59]} 2. b3 {[%clk 0:02:59]}  Nf6 {[%clk 0:02:58]} 3. Bb2 {[%clk 0:02:59]}  Bf5 {[%clk 0:02:57]} 4. g3 {[%clk 0:02:55]}  e6 {[%clk 0:02:57]} 5. Nh4 {[%clk 0:02:55]}  Bg6 {[%clk 0:02:56]} 6. Nxg6 {[%clk 0:02:55]}  hxg6 {[%clk 0:02:56]} 7. Bg2 {[%clk 0:02:56]}  Nbd7 {[%clk 0:02:56]} 8. e3 {[%clk 0:02:56]}  Bd6 {[%clk 0:02:55]} 9. d3 {[%clk 0:02:55]}  Qe7 {[%clk 0:02:54]} 10. a3 {[%clk 0:02:55]}  a5 {[%clk 0:02:53]} 11. Nd2 {[%clk 0:02:54]}  a4 {[%clk 0:02:50]} 12. b4 {[%clk 0:02:54]}  c5 {[%clk 0:02:49]} 13. bxc5 {[%clk 0:02:54]}  Nxc5 {[%clk 0:02:48]} 14. O-O {[%clk 0:02:52]}  O-O {[%clk 0:02:46]} 15. d4 {[%clk 0:02:48]}  Nce4 {[%clk 0:02:27]} 16. Nxe4 {[%clk 0:02:47]}  dxe4 {[%clk 0:02:19]} 17. c4 {[%clk 0:02:48]}  b6 {[%clk 0:02:18]} 18. Qc2 {[%clk 0:02:46]}  Rfc8 {[%clk 0:02:18]} 19. Rfc1 {[%clk 0:02:45]}  Qb7 {[%clk 0:02:12]} 20. Qe2 {[%clk 0:02:45]}  Rc7 {[%clk 0:02:07]} 21. Rab1 {[%clk 0:02:44]}  Rac8 {[%clk 0:02:04]} 22. Rc2 {[%clk 0:02:40]}  Qa6 {[%clk 0:02:02]} 23. Rbc1 {[%clk 0:02:39]}  Be7 {[%clk 0:01:54]} 24. h4 {[%clk 0:02:37]}  Qa5 {[%clk 0:01:44]} 25. g4 {[%clk 0:02:16]}  Ne8 {[%clk 0:01:20]} 26. Bxe4 {[%clk 0:02:07]}  Bxh4 {[%clk 0:01:20]} 27. f4 {[%clk 0:02:02]}  Nd6 {[%clk 0:01:13]} 28. Bd3 {[%clk 0:02:00]}  g5 {[%clk 0:00:47]} 29. Qf3 {[%clk 0:01:49]}  g6 {[%clk 0:00:30]} 30. Qh3 {[%clk 0:01:41]}  Nxc4 {[%clk 0:00:21]} 31. Bxc4 {[%clk 0:01:06]}  b5 {[%clk 0:00:20]} 32. Bc3 {[%clk 0:01:03]}  Qa8 {[%clk 0:00:14]} 33. Bd3 {[%clk 0:00:52]}  b4 {[%clk 0:00:05]} 34. axb4 {[%clk 0:00:53]}  a3 {[%clk 0:00:05]} 35. fxg5 {[%clk 0:00:53]}  Bxg5 {[%clk 0:00:02]} 36. Rh2 {[%clk 0:00:46]}  Bf6 {[%clk 0:00:01]} 37. g5 {[%clk 0:00:39]} 1-0


[Site "https://www.chess.com"]

[Event "Titled Tuesday Blitz July 6 2021"]
[White "Novikov, Evgenij"]
[Black "Bryant, Jehron"]
[WhiteFideId "4125380"]
[BlackFideId "2044455"]
[WhiteElo "2242"]
[BlackElo "2411"]
[Result "1-0"]
[Round "07"]
[TimeControl "180+1"]
[Date "2021.07.06"]
[WhiteClock "0:00:10"]
[BlackClock "0:00:18"]

1. e4 {[%clk 0:03:00]}  c5 {[%clk 0:02:59]} 2. Nf3 {[%clk 0:02:58]}  e6 {[%clk 0:03:00]} 3. d4 {[%clk 0:02:46]}  cxd4 {[%clk 0:02:58]} 4. c3 {[%clk 0:02:47]}  d5 {[%clk 0:02:52]} 5. exd5 {[%clk 0:02:46]}  exd5 {[%clk 0:02:42]} 6. Nxd4 {[%clk 0:02:45]}  Nf6 {[%clk 0:02:36]} 7. Be2 {[%clk 0:02:45]}  Bc5 {[%clk 0:02:26]} 8. O-O {[%clk 0:02:44]}  O-O {[%clk 0:02:25]} 9. Nb3 {[%clk 0:02:44]}  Bd6 {[%clk 0:02:23]} 10. N1d2 {[%clk 0:02:44]}  Nc6 {[%clk 0:02:15]} 11. Nf3 {[%clk 0:02:44]}  h6 {[%clk 0:02:10]} 12. Be3 {[%clk 0:02:36]}  Bg4 {[%clk 0:02:04]} 13. h3 {[%clk 0:02:35]}  Bh5 {[%clk 0:02:03]} 14. Bc5 {[%clk 0:02:26]}  Re8 {[%clk 0:01:45]} 15. Re1 {[%clk 0:02:15]}  Ne4 {[%clk 0:01:31]} 16. Bxd6 {[%clk 0:02:08]}  Qxd6 {[%clk 0:01:30]} 17. Nfd4 {[%clk 0:02:07]}  Bg6 {[%clk 0:01:19]} 18. Bf3 {[%clk 0:01:58]}  a6 {[%clk 0:00:59]} 19. Nxc6 {[%clk 0:01:53]}  bxc6 {[%clk 0:00:43]} 20. c4 {[%clk 0:01:50]}  Rad8 {[%clk 0:00:37]} 21. cxd5 {[%clk 0:01:29]}  cxd5 {[%clk 0:00:36]} 22. Qd4 {[%clk 0:01:28]}  Qf6 {[%clk 0:00:29]} 23. Qxf6 {[%clk 0:01:19]}  Nxf6 {[%clk 0:00:29]} 24. Nd4 {[%clk 0:01:12]}  Be4 {[%clk 0:00:28]} 25. Be2 {[%clk 0:01:10]}  Rc8 {[%clk 0:00:26]} 26. Bxa6 {[%clk 0:01:08]}  Rb8 {[%clk 0:00:24]} 27. b3 {[%clk 0:01:06]}  Rb4 {[%clk 0:00:22]} 28. Rad1 {[%clk 0:00:58]}  Ra8 {[%clk 0:00:22]} 29. a3 {[%clk 0:00:38]}  Rxd4 {[%clk 0:00:22]} 30. Rxd4 {[%clk 0:00:39]}  Rxa6 {[%clk 0:00:23]} 31. a4 {[%clk 0:00:37]}  Bc2 {[%clk 0:00:21]} 32. Re3 {[%clk 0:00:34]}  Kf8 {[%clk 0:00:18]} 33. Rc3 {[%clk 0:00:33]}  Bf5 {[%clk 0:00:18]} 34. g4 {[%clk 0:00:30]}  Bd7 {[%clk 0:00:17]} 35. f3 {[%clk 0:00:29]}  Ke7 {[%clk 0:00:18]} 36. Kf2 {[%clk 0:00:28]}  Kd6 {[%clk 0:00:18]} 37. h4 {[%clk 0:00:28]}  Ne8 {[%clk 0:00:17]} 38. g5 {[%clk 0:00:28]}  Nc7 {[%clk 0:00:18]} 39. gxh6 {[%clk 0:00:27]}  gxh6 {[%clk 0:00:19]} 40. Rf4 {[%clk 0:00:26]}  Be6 {[%clk 0:00:16]} 41. Rf6 {[%clk 0:00:25]}  Ne8 {[%clk 0:00:16]} 42. Rxh6 {[%clk 0:00:25]}  Ke5 {[%clk 0:00:17]} 43. Rh8 {[%clk 0:00:24]}  Nd6 {[%clk 0:00:17]} 44. Re3+ {[%clk 0:00:22]}  Kd4 {[%clk 0:00:17]} 45. h5 {[%clk 0:00:17]}  Nf5 {[%clk 0:00:17]} 46. Re2 {[%clk 0:00:16]}  Rb6 {[%clk 0:00:18]} 47. h6 {[%clk 0:00:14]}  Rxb3 {[%clk 0:00:18]} 48. h7 {[%clk 0:00:14]}  Ne7 {[%clk 0:00:17]} 49. Rg8 {[%clk 0:00:11]}  Ng6 {[%clk 0:00:17]} 50. Rxg6 {[%clk 0:00:12]}  fxg6 {[%clk 0:00:18]} 51. h8=Q+ {[%clk 0:00:12]}  Kc4 {[%clk 0:00:18]} 52. Rxe6 {[%clk 0:00:12]}  Rb2+ {[%clk 0:00:18]} 53. Qxb2 {[%clk 0:00:10]} 1-0


[Site "https://www.chess.com"]

[Event "Titled Tuesday Blitz July 6 2021"]
[White "Obregon, Andres Carlos"]
[Black "Rostovtsev, Dmitry"]
[WhiteFideId "111724"]
[BlackFideId "34278320"]
[WhiteElo "2572"]
[BlackElo "2114"]
[Result "1-0"]
[Round "07"]
[TimeControl "180+1"]
[Date "2021.07.06"]
[WhiteClock "0:01:39"]
[BlackClock "0:01:17"]

1. d4 {[%clk 0:03:00]}  Nf6 {[%clk 0:02:58]} 2. Bf4 {[%clk 0:02:58]}  d5 {[%clk 0:02:56]} 3. e3 {[%clk 0:02:57]}  e6 {[%clk 0:02:56]} 4. Nd2 {[%clk 0:02:57]}  c5 {[%clk 0:02:56]} 5. c3 {[%clk 0:02:55]}  Nc6 {[%clk 0:02:56]} 6. Ngf3 {[%clk 0:02:55]}  cxd4 {[%clk 0:02:56]} 7. exd4 {[%clk 0:02:54]}  Nh5 {[%clk 0:02:56]} 8. Be3 {[%clk 0:02:52]}  Bd6 {[%clk 0:02:55]} 9. Ne5 {[%clk 0:02:52]}  Nf6 {[%clk 0:02:52]} 10. f4 {[%clk 0:02:48]}  Ng8 {[%clk 0:02:52]} 11. Bd3 {[%clk 0:02:40]}  Nge7 {[%clk 0:02:52]} 12. O-O {[%clk 0:02:38]}  O-O {[%clk 0:02:49]} 13. Qe2 {[%clk 0:02:28]}  f6 {[%clk 0:02:41]} 14. Nef3 {[%clk 0:02:28]}  Nf5 {[%clk 0:02:41]} 15. Rae1 {[%clk 0:02:22]}  Qc7 {[%clk 0:02:37]} 16. g3 {[%clk 0:02:22]}  Bd7 {[%clk 0:02:37]} 17. Bf2 {[%clk 0:02:13]}  Rae8 {[%clk 0:02:35]} 18. Qd1 {[%clk 0:02:12]}  a6 {[%clk 0:02:26]} 19. c4 {[%clk 0:02:02]}  Nb4 {[%clk 0:02:06]} 20. Bxf5 {[%clk 0:02:01]}  exf5 {[%clk 0:02:04]} 21. c5 {[%clk 0:02:01]}  Be7 {[%clk 0:02:02]} 22. Qb3 {[%clk 0:02:00]}  Nc6 {[%clk 0:01:29]} 23. Qxd5+ {[%clk 0:01:59]}  Kh8 {[%clk 0:01:30]} 24. Qc4 {[%clk 0:01:53]}  Rc8 {[%clk 0:01:26]} 25. b4 {[%clk 0:01:45]}  b5 {[%clk 0:01:22]} 26. Qb3 {[%clk 0:01:41]}  a5 {[%clk 0:01:18]} 27. d5 {[%clk 0:01:40]}  Nxb4 {[%clk 0:01:17]} 28. Rxe7 {[%clk 0:01:39]} 1-0


[Site "https://www.chess.com"]

[Event "Titled Tuesday Blitz July 6 2021"]
[White "Oliveira, Silvio Eduardo"]
[Black "Vovk, Orest"]
[WhiteFideId "2111560"]
[BlackFideId "14113490"]
[WhiteElo "2302"]
[BlackElo "2203"]
[Result "0-1"]
[Round "07"]
[TimeControl "180+1"]
[Date "2021.07.06"]
[WhiteClock "0:02:03"]
[BlackClock "0:01:23"]

1. e4 {[%clk 0:03:00]}  g5 {[%clk 0:02:55]} 2. d4 {[%clk 0:02:59]}  g4 {[%clk 0:02:55]} 3. Nc3 {[%clk 0:02:57]}  Bg7 {[%clk 0:02:54]} 4. Be3 {[%clk 0:02:49]}  h5 {[%clk 0:02:52]} 5. h3 {[%clk 0:02:49]}  d6 {[%clk 0:02:51]} 6. Be2 {[%clk 0:02:49]}  Nf6 {[%clk 0:02:29]} 7. e5 {[%clk 0:02:47]}  dxe5 {[%clk 0:02:22]} 8. dxe5 {[%clk 0:02:48]}  Qxd1+ {[%clk 0:02:21]} 9. Rxd1 {[%clk 0:02:49]}  Ng8 {[%clk 0:02:00]} 10. hxg4 {[%clk 0:02:35]}  hxg4 {[%clk 0:01:50]} 11. Rxh8 {[%clk 0:02:33]}  Bxh8 {[%clk 0:01:51]} 12. f4 {[%clk 0:02:23]}  gxf3 {[%clk 0:01:43]} 13. Nxf3 {[%clk 0:02:22]}  c6 {[%clk 0:01:35]} 14. Kf2 {[%clk 0:02:03]}  Bg4 {[%clk 0:01:23]} 0-1


[Site "https://www.chess.com"]

[Event "Titled Tuesday Blitz July 6 2021"]
[White "Orozbaev, Eldiar"]
[Black "Yanchenko, Roman"]
[WhiteFideId "13802240"]
[BlackFideId "4137329"]
[WhiteElo "1911"]
[BlackElo "2514"]
[Result "0-1"]
[Round "07"]
[TimeControl "180+1"]
[Date "2021.07.06"]
[WhiteClock "0:00:07"]
[BlackClock "0:00:18"]

1. e4 {[%clk 0:03:00]}  e6 {[%clk 0:02:57]} 2. d4 {[%clk 0:03:00]}  d5 {[%clk 0:02:58]} 3. exd5 {[%clk 0:03:00]}  exd5 {[%clk 0:02:58]} 4. Bd3 {[%clk 0:03:00]}  c5 {[%clk 0:02:58]} 5. Nf3 {[%clk 0:02:59]}  c4 {[%clk 0:02:58]} 6. Be2 {[%clk 0:02:57]}  Bd6 {[%clk 0:02:58]} 7. O-O {[%clk 0:02:57]}  Ne7 {[%clk 0:02:58]} 8. b3 {[%clk 0:02:57]}  cxb3 {[%clk 0:02:59]} 9. axb3 {[%clk 0:02:58]}  O-O {[%clk 0:02:59]} 10. c4 {[%clk 0:02:58]}  Nbc6 {[%clk 0:02:59]} 11. Nc3 {[%clk 0:02:58]}  Bf5 {[%clk 0:02:58]} 12. Bg5 {[%clk 0:02:57]}  f6 {[%clk 0:02:58]} 13. Bh4 {[%clk 0:02:57]}  a6 {[%clk 0:02:57]} 14. Bg3 {[%clk 0:02:56]}  Rc8 {[%clk 0:02:56]} 15. Re1 {[%clk 0:02:56]}  Re8 {[%clk 0:02:55]} 16. Bd3 {[%clk 0:02:48]}  Bb4 {[%clk 0:02:54]} 17. Rc1 {[%clk 0:02:45]}  Ba3 {[%clk 0:02:47]} 18. Rb1 {[%clk 0:02:39]}  Qa5 {[%clk 0:02:44]} 19. Nxd5 {[%clk 0:02:34]}  Nxd5 {[%clk 0:02:34]} 20. cxd5 {[%clk 0:02:16]}  Bxd3 {[%clk 0:02:33]} 21. dxc6 {[%clk 0:02:16]}  Bxb1 {[%clk 0:02:33]} 22. cxb7 {[%clk 0:02:16]}  Bf5 {[%clk 0:01:52]} 23. bxc8=Q {[%clk 0:02:04]}  Rxc8 {[%clk 0:01:53]} 24. d5 {[%clk 0:02:04]}  Rc1 {[%clk 0:01:47]} 25. Qe2 {[%clk 0:01:54]}  Rxe1+ {[%clk 0:01:47]} 26. Nxe1 {[%clk 0:01:55]}  Qxd5 {[%clk 0:01:47]} 27. Qxa6 {[%clk 0:01:54]}  Qxb3 {[%clk 0:01:47]} 28. Qa8+ {[%clk 0:01:48]}  Kf7 {[%clk 0:01:47]} 29. Qa7+ {[%clk 0:01:41]}  Kg6 {[%clk 0:01:46]} 30. Qa8 {[%clk 0:01:16]}  h6 {[%clk 0:00:47]} 31. Qe8+ {[%clk 0:01:11]}  Kh7 {[%clk 0:00:47]} 32. h3 {[%clk 0:01:12]}  Qb1 {[%clk 0:00:43]} 33. Kh2 {[%clk 0:01:10]}  Be4 {[%clk 0:00:40]} 34. Nf3 {[%clk 0:01:04]}  Bxf3 {[%clk 0:00:24]} 35. gxf3 {[%clk 0:01:05]}  Qf5 {[%clk 0:00:24]} 36. Qe4 {[%clk 0:01:03]}  Qg6 {[%clk 0:00:24]} 37. Qxg6+ {[%clk 0:00:56]}  Kxg6 {[%clk 0:00:25]} 38. Kg2 {[%clk 0:00:56]}  Kf5 {[%clk 0:00:25]} 39. f4 {[%clk 0:00:57]}  Ke4 {[%clk 0:00:24]} 40. f3+ {[%clk 0:00:46]}  Kf5 {[%clk 0:00:25]} 41. Kf2 {[%clk 0:00:40]}  Bc1 {[%clk 0:00:25]} 42. Kg2 {[%clk 0:00:37]}  Be3 {[%clk 0:00:24]} 43. h4 {[%clk 0:00:35]}  h5 {[%clk 0:00:24]} 44. Be1 {[%clk 0:00:34]}  g6 {[%clk 0:00:23]} 45. Bc3 {[%clk 0:00:31]}  Bxf4 {[%clk 0:00:23]} 46. Kh3 {[%clk 0:00:31]}  Be5 {[%clk 0:00:22]} 47. Bd2 {[%clk 0:00:31]}  Ke6 {[%clk 0:00:22]} 48. Kg2 {[%clk 0:00:30]}  Bd4 {[%clk 0:00:21]} 49. f4 {[%clk 0:00:29]}  f5 {[%clk 0:00:18]} 50. Kf3 {[%clk 0:00:29]}  Kd5 {[%clk 0:00:18]} 51. Be1 {[%clk 0:00:24]}  Kc4 {[%clk 0:00:18]} 52. Ba5 {[%clk 0:00:22]}  Kd3 {[%clk 0:00:18]} 53. Bd8 {[%clk 0:00:21]}  Bc3 {[%clk 0:00:17]} 54. Bg5 {[%clk 0:00:21]}  Kd2 {[%clk 0:00:17]} 55. Bd8 {[%clk 0:00:21]}  Ke1 {[%clk 0:00:17]} 56. Bg5 {[%clk 0:00:07]}  Kf1 {[%clk 0:00:16]} 57. Kg3 {[%clk 0:00:03]}  Kg1 {[%clk 0:00:15]} 58. Bd8 {[%clk 0:00:02]}  Be1+ {[%clk 0:00:15]} 59. Kh3 {[%clk 0:00:02]}  Kf2 {[%clk 0:00:15]} 60. Bb6+ {[%clk 0:00:02]}  Kf3 {[%clk 0:00:15]} 61. Bc7 {[%clk 0:00:02]}  Bd2 {[%clk 0:00:15]} 62. Bd8 {[%clk 0:00:02]}  Bxf4 {[%clk 0:00:15]} 63. Bf6 {[%clk 0:00:03]}  Be3 {[%clk 0:00:15]} 64. Be5 {[%clk 0:00:03]}  f4 {[%clk 0:00:16]} 65. Kh2 {[%clk 0:00:02]}  Ke2 {[%clk 0:00:16]} 66. Kg2 {[%clk 0:00:03]}  f3+ {[%clk 0:00:16]} 67. Kh3 {[%clk 0:00:03]}  f2 {[%clk 0:00:17]} 68. Bg3 {[%clk 0:00:04]}  f1=Q+ {[%clk 0:00:17]} 69. Kh2 {[%clk 0:00:04]}  Bg1+ {[%clk 0:00:17]} 70. Kh1 {[%clk 0:00:05]}  Bf2+ {[%clk 0:00:17]} 71. Kh2 {[%clk 0:00:06]}  Qg1+ {[%clk 0:00:18]} 72. Kh3 {[%clk 0:00:07]}  Qxg3# {[%clk 0:00:18]} 0-1


[Site "https://www.chess.com"]

[Event "Titled Tuesday Blitz July 6 2021"]
[White "Ozates, Tuna"]
[Black "Vogel, Roven"]
[WhiteFideId "6354521"]
[BlackFideId "12908088"]
[WhiteElo "1872"]
[BlackElo "2516"]
[Result "0-1"]
[Round "07"]
[TimeControl "180+1"]
[Date "2021.07.06"]
[WhiteClock "0:00:03"]
[BlackClock "0:01:30"]

1. e4 {[%clk 0:03:00]}  c6 {[%clk 0:02:59]} 2. d4 {[%clk 0:02:59]}  d5 {[%clk 0:03:00]} 3. e5 {[%clk 0:02:59]}  Bf5 {[%clk 0:02:59]} 4. Nf3 {[%clk 0:03:00]}  e6 {[%clk 0:02:59]} 5. Be2 {[%clk 0:02:59]}  h6 {[%clk 0:02:59]} 6. c3 {[%clk 0:02:58]}  Nd7 {[%clk 0:02:59]} 7. Nbd2 {[%clk 0:02:59]}  Ne7 {[%clk 0:02:59]} 8. Nb3 {[%clk 0:02:59]}  g5 {[%clk 0:02:55]} 9. Be3 {[%clk 0:02:58]}  Bg6 {[%clk 0:02:53]} 10. Qd2 {[%clk 0:02:56]}  Nf5 {[%clk 0:02:52]} 11. O-O {[%clk 0:02:41]}  f6 {[%clk 0:02:50]} 12. exf6 {[%clk 0:02:40]}  Qxf6 {[%clk 0:02:49]} 13. Bd3 {[%clk 0:02:36]}  Bd6 {[%clk 0:02:47]} 14. h3 {[%clk 0:02:21]}  O-O {[%clk 0:02:46]} 15. Nh2 {[%clk 0:02:19]}  Rae8 {[%clk 0:02:29]} 16. Ng4 {[%clk 0:00:17]}  Qg7 {[%clk 0:02:26]} 17. Rae1 {[%clk 0:00:15]}  h5 {[%clk 0:02:26]} 18. Nh2 {[%clk 0:00:15]}  e5 {[%clk 0:02:07]} 19. dxe5 {[%clk 0:00:13]}  Nxe5 {[%clk 0:02:06]} 20. Bxg5 {[%clk 0:00:13]}  Nxd3 {[%clk 0:02:06]} 21. Qxd3 {[%clk 0:00:12]}  Ng3 {[%clk 0:02:04]} 22. Qd2 {[%clk 0:00:06]}  Nxf1 {[%clk 0:01:54]} 23. Rxf1 {[%clk 0:00:05]}  Be4 {[%clk 0:01:43]} 24. f4 {[%clk 0:00:04]}  Be7 {[%clk 0:01:32]} 25. Nf3 {[%clk 0:00:03]}  Bxf3 {[%clk 0:01:31]} 26. Rxf3 {[%clk 0:00:03]}  Bxg5 {[%clk 0:01:32]} 27. fxg5 {[%clk 0:00:04]}  Rxf3 {[%clk 0:01:31]} 28. gxf3 {[%clk 0:00:05]}  Qe5 {[%clk 0:01:31]} 29. h4 {[%clk 0:00:03]}  Qg3+ {[%clk 0:01:30]} 0-1


[Site "https://www.chess.com"]

[Event "Titled Tuesday Blitz July 6 2021"]
[White "Ozen, Bahadir"]
[Black "Tomiello, Lucas Costamilan"]
[WhiteFideId "6337058"]
[BlackFideId "22701940"]
[WhiteElo "2503"]
[BlackElo "1945"]
[Result "1-0"]
[Round "07"]
[TimeControl "180+1"]
[Date "2021.07.06"]
[WhiteClock "0:00:14"]
[BlackClock "0:00:09"]

1. Nf3 {[%clk 0:03:00]}  Nf6 {[%clk 0:02:59]} 2. e3 {[%clk 0:03:00]}  d5 {[%clk 0:02:59]} 3. c4 {[%clk 0:03:00]}  c5 {[%clk 0:02:57]} 4. cxd5 {[%clk 0:02:57]}  Nxd5 {[%clk 0:02:58]} 5. Nc3 {[%clk 0:02:54]}  g6 {[%clk 0:02:54]} 6. Qa4+ {[%clk 0:02:44]}  Nc6 {[%clk 0:02:51]} 7. Ne5 {[%clk 0:02:44]}  Nxc3 {[%clk 0:02:42]} 8. bxc3 {[%clk 0:02:34]}  Bd7 {[%clk 0:02:38]} 9. Nxd7 {[%clk 0:02:30]}  Qxd7 {[%clk 0:02:39]} 10. Ba3 {[%clk 0:02:17]}  Bg7 {[%clk 0:02:15]} 11. Bxc5 {[%clk 0:02:13]}  O-O {[%clk 0:02:14]} 12. d4 {[%clk 0:02:12]}  Rfc8 {[%clk 0:02:07]} 13. Bb5 {[%clk 0:02:00]}  b6 {[%clk 0:02:04]} 14. Ba3 {[%clk 0:01:56]}  a6 {[%clk 0:02:03]} 15. Bxc6 {[%clk 0:01:50]}  Rxc6 {[%clk 0:01:57]} 16. O-O {[%clk 0:01:47]}  b5 {[%clk 0:01:56]} 17. Qb3 {[%clk 0:01:41]}  Rac8 {[%clk 0:01:50]} 18. Bc5 {[%clk 0:01:39]}  e6 {[%clk 0:01:51]} 19. a4 {[%clk 0:01:39]}  Bf8 {[%clk 0:01:46]} 20. axb5 {[%clk 0:01:36]}  axb5 {[%clk 0:01:45]} 21. Qxb5 {[%clk 0:01:34]}  Bxc5 {[%clk 0:01:44]} 22. dxc5 {[%clk 0:01:34]}  Qe7 {[%clk 0:01:41]} 23. Ra8 {[%clk 0:01:13]}  Qxc5 {[%clk 0:01:27]} 24. Qxc5 {[%clk 0:01:08]}  Rxc5 {[%clk 0:01:27]} 25. Rxc8+ {[%clk 0:01:08]}  Rxc8 {[%clk 0:01:28]} 26. Rc1 {[%clk 0:01:08]}  Kg7 {[%clk 0:01:26]} 27. Kf1 {[%clk 0:01:04]}  Kf6 {[%clk 0:01:22]} 28. Ke2 {[%clk 0:01:01]}  Ke5 {[%clk 0:01:22]} 29. Kd3 {[%clk 0:01:00]}  Rd8+ {[%clk 0:01:22]} 30. Kc2 {[%clk 0:01:00]}  h5 {[%clk 0:01:15]} 31. Ra1 {[%clk 0:00:55]}  f5 {[%clk 0:01:07]} 32. c4 {[%clk 0:00:53]}  Rc8 {[%clk 0:00:56]} 33. Kc3 {[%clk 0:00:53]}  g5 {[%clk 0:00:51]} 34. f3 {[%clk 0:00:44]}  g4 {[%clk 0:00:43]} 35. Ra5+ {[%clk 0:00:44]}  Kf6 {[%clk 0:00:42]} 36. c5 {[%clk 0:00:39]}  h4 {[%clk 0:00:36]} 37. h3 {[%clk 0:00:38]}  gxh3 {[%clk 0:00:33]} 38. gxh3 {[%clk 0:00:39]}  Ke5 {[%clk 0:00:30]} 39. Kc4 {[%clk 0:00:37]}  Rg8 {[%clk 0:00:22]} 40. Ra6 {[%clk 0:00:19]}  Rg1 {[%clk 0:00:20]} 41. f4+ {[%clk 0:00:19]}  Kf6 {[%clk 0:00:15]} 42. Ra7 {[%clk 0:00:17]}  Rg3 {[%clk 0:00:12]} 43. c6 {[%clk 0:00:17]}  Rxh3 {[%clk 0:00:10]} 44. c7 {[%clk 0:00:09]}  Rh1 {[%clk 0:00:10]} 45. Ra3 {[%clk 0:00:09]}  Rc1+ {[%clk 0:00:04]} 46. Rc3 {[%clk 0:00:09]}  Rxc3+ {[%clk 0:00:04]} 47. Kxc3 {[%clk 0:00:10]}  h3 {[%clk 0:00:04]} 48. c8=Q {[%clk 0:00:10]}  h2 {[%clk 0:00:05]} 49. Qa8 {[%clk 0:00:11]}  Kg6 {[%clk 0:00:04]} 50. Qh1 {[%clk 0:00:12]}  e5 {[%clk 0:00:03]} 51. Qxh2 {[%clk 0:00:12]}  exf4 {[%clk 0:00:03]} 52. Qxf4 {[%clk 0:00:12]}  Kf6 {[%clk 0:00:04]} 53. Kd4 {[%clk 0:00:12]}  Ke6 {[%clk 0:00:05]} 54. Qe5+ {[%clk 0:00:12]}  Kf7 {[%clk 0:00:05]} 55. Qxf5+ {[%clk 0:00:13]}  Kg7 {[%clk 0:00:05]} 56. e4 {[%clk 0:00:13]}  Kh6 {[%clk 0:00:06]} 57. e5 {[%clk 0:00:14]}  Kg7 {[%clk 0:00:07]} 58. e6 {[%clk 0:00:15]}  Kh6 {[%clk 0:00:08]} 59. e7 {[%clk 0:00:15]}  Kg7 {[%clk 0:00:09]} 60. e8=Q {[%clk 0:00:14]} 1-0


[Site "https://www.chess.com"]